Cogmind - Beta 15 @@@ ROGUE MODE // 2025.05.29 @ 00:09:36 Player: aloola Result: Destroyed by C-35 Carver with Carbide Saw Performance ------------- Evolutions (5) 2500 Regions Visited (13) 2600 Robots Destroyed (12) 60 Value Destroyed (496) 496 Prototype IDs (13) 260 Alien Tech Used (0) 0 Bonus (1025) 1025 TOTAL SCORE: 6941 Bonus ------- High Alert Combat Kills 25 Entered Garrisons 200 Entered DSFs 500 Met Data Miner 300 Cogmind --------- Core Integrity 0/1000 Matter 261/300 Energy 84/100 System Corruption 2% Temperature Cool (0) Movement Core (50) Location -5/Garrison Parts ------- > --- POWER (1) -------- (None) > --- PROPULSION (4) --- (None) > --- UTILITY (9) ------ Advanced Visual Processing Unit Improved Sensor Array Advanced Signal Interpreter 0b10 Decoder Chip [Scout] > --- WEAPON (3) ------- (None) > --- INVENTORY (5) ---- (None) Peak State ------------ > --- POWER ------------ Micro Nuclear Core > --- PROPULSION ------- Linear Gravjet Linear Gravjet Linear Gravjet Linear Gravjet > --- UTILITY ---------- Gravity Neutralizer Advanced Visual Processing Unit Advanced Signal Interpreter 0b10 Decoder Chip [Scout] Advanced Melee Analysis Suite Improved Light Armor Plating System Shield Improved System Shield Corruption Screen > --- WEAPON ----------- Ripper > --- INVENTORY -------- Improved Sensor Array Improved Shield Generator Advanced Plasma Cannon Heavy Flak Cannon Heavy Missile Launcher [Rating: 73] Favorites ----------- Power Micro Nuclear Core Engine Light Deuterium Engine Power Core Micro Nuclear Core Propulsion Light Treads Treads Light Treads Leg Titanium Leg Wheel Armored Huge Wheel Hover Unit Linear Gravjet Flight Unit Surge Thruster Utility Advanced Signal Interpreter Device Terrain Scanner Processor Advanced Signal Interpreter Hackware Improved System Shield Protection Improved Light Armor Plating Weapon Ripper Energy Gun Small Laser Energy Cannon Heavy Plasma Cannon Ballistic Gun Assault Rifle Ballistic Cannon Heavy Flak Cannon Launcher Heavy Missile Launcher Special Weapon Mining Laser Slashing Weapon Ripper Special Melee Weapon Improved Datajack Build | -11 -10 -10 -9 -8 -7 -7 -6 -6 -6 -6 -5 -5 -5 ------- Run | Yrd Mat Min Mat Mat Fac DSF Fac Low Low Dat Pro Fac Gar Slots Evolved 10 | . . . 2 2 2 . 2 . . . . 2 . Power . | . . . . . . . . . . . . . . Propulsion 2 | . . . 1 . 1 . . . . . . . . Utility 7 | . . . 1 2 . . 2 . . . . 2 . Weapon 1 | . . . . . 1 . . . . . . . . Parts Attached 52 | 7 . . 1 6 1 1 16 2 3 . 5 6 4 Power 3 | . . . . . . . 2 . 1 . . . . Engine 1 | . . . . . . . . . 1 . . . . Core 2 | . . . . . . . 2 . . . . . . Reactor . | . . . . . . . . . . . . . . Propulsion 14 | 2 . . . 3 1 . 1 1 2 . . 4 . Treads 2 | 2 . . . . . . . . . . . . . Leg 2 | . . . . 1 . . 1 . . . . . . Wheel 1 | . . . . . . . . 1 . . . . . Hover 5 | . . . . . 1 . . . . . . 4 . Flight 4 | . . . . 2 . . . . 2 . . . . Utility 18 | 1 . . 1 1 . . 7 1 . . 3 2 2 Device 8 | 1 . . 1 . . . 2 1 . . . 2 1 Storage . | . . . . . . . . . . . . . . Processor 7 | . . . . 1 . . 4 . . . 2 . . Hackware 2 | . . . . . . . 1 . . . 1 . . Protection 1 | . . . . . . . . . . . . . 1 Artifact . | . . . . . . . . . . . . . . Weapon 17 | 4 . . . 2 . 1 6 . . . 2 . 2 Energy Gun 6 | 2 . . . 1 . . 2 . . . . . 1 Energy Cannon 2 | . . . . . . . 2 . . . . . . Ballistic Gun 1 | 1 . . . . . . . . . . . . . Ballistic Cannon 1 | . . . . . . . 1 . . . . . . Launcher 1 | . . . . . . . . . . . . . 1 Special Weapon 1 | 1 . . . . . . . . . . . . . Impact Weapon . | . . . . . . . . . . . . . . Slashing Weapon 4 | . . . . 1 . 1 1 . . . 1 . . Piercing Weapon . | . . . . . . . . . . . . . . Special Melee Weapon 1 | . . . . . . . . . . . 1 . . Unidentified Prototypes 2 | . . . . . . . . . . . . 1 1 Parts Lost 23 | . . . . 1 . . 4 1 4 . . . 13 Power 1 | . . . . . . . . . . . . . 1 Propulsion 8 | . . . . . . . 1 . 3 . . . 4 Utility 8 | . . . . . . . 1 1 1 . . . 5 Weapon 6 | . . . . 1 . . 2 . . . . . 3 Highest Loss Streak 13 | . . . . 1 . . 3 1 4 . . . 13 To Critical Strikes . | . . . . . . . . . . . . . . Average Backups 4 | 1 4 4 5 1 4 4 4 5 4 5 4 4 3 Power . | . 1 1 1 . . . . 1 . 1 1 . . Propulsion . | . . . . . 1 . . . . . . . . Utility 1 | . . . . 1 3 2 1 1 1 1 . 1 1 Weapon 2 | 1 3 3 3 . . 1 2 3 2 3 2 3 2 Tool/Special . | . . . . . . . . . . . . . . Unused Backups 12 | . . . 5 . 1 2 1 . . . 1 . 2 Power 1 | . . . 1 . . . . . . . . . . Propulsion 1 | . . . . . . 1 . . . . . . . Utility 4 | . . . . . 1 1 . . . . 1 . 1 Weapon 5 | . . . 3 . . . 1 . . . . . 1 Tool/Special 1 | . . . 1 . . . . . . . . . . Average Slot Usage (%) 46 | . 71 71 52 15 40 45 22 47 51 33 48 69 66 Treads 5 | . 28 28 21 . . . . . . . . . . Hover 2 | . . . . . 1 7 . . . . . 17 14 Flight 2 | . . . . 9 15 12 . . 6 . . . . Device 6 | . 14 14 19 . . . 5 11 3 . . 2 3 Processor 15 | . . . . . 7 7 8 26 26 26 31 29 25 Hackware 4 | . . . . . . . 1 6 6 6 11 11 8 Energy Gun 2 | . 14 14 1 3 7 5 . . . . . . . Special Weapon 2 | . 14 14 10 . . . . . . . . . . Slashing Weapon 1 | . . . . . . 4 1 . . . 4 5 3 Peak Build Rating 73 | 5 5 5 6 15 20 24 39 38 42 24 39 67 73 Average Rating 24 | 3 5 5 5 5 16 19 14 32 34 24 33 59 54 On Entrance 19 | . 5 5 5 . 15 20 4 30 33 24 24 36 67 Naked Turns 58 | . . . 3 55 . . . . . . . . . Heaviest Build 12 | 4 3 3 3 5 3 6 11 2 6 . 3 10 12 Greatest Support 36 | 20 3 3 3 17 17 6 18 3 10 3 3 36 36 Greatest Overweight (x) 3 | 1 . . . 1 . . 3 . 1 . . . 3 Average Overweight (x) . | . . . . . . . . . . . . . . Largest Inventory Capacity 5 | 5 5 5 5 5 5 5 5 5 5 5 5 5 5 Average Capacity 5 | 5 5 5 5 5 5 5 5 5 5 5 5 5 5 Most Carried 5 | 4 4 5 5 4 5 5 5 5 5 5 5 5 5 Average Carried 4 | 1 4 4 4 1 4 4 4 5 4 5 4 4 4 Final Capacity 5 | 5 5 5 5 5 5 5 5 5 5 5 5 5 5 Final Carried 5 | 4 4 5 . 4 5 5 5 5 5 5 5 5 . Class Distribution -------------------- 70% | Mutant 19% | Hacker-Mutant 4% | Scavenger-Mutant 3% | Sprinter Dominant Class ---------------- Mutant | -10/Materials Mutant | -10/Mines Mutant | -9/Materials Sprinter | -8/Materials Mutant | -7/Factory Mutant | -7/DSF Mutant | -6/Factory Mutant | -6/Lower Caves Scavenger-Mutant | -6/Lower Caves Mutant | -6/Data Miner Hacker-Mutant | -5/Proximity Caves Hacker-Mutant | -5/Factory Hacker-Mutant | -5/Garrison Resources | -11 -10 -10 -9 -8 -7 -7 -6 -6 -6 -6 -5 -5 -5 ----------- Run | Yrd Mat Min Mat Mat Fac DSF Fac Low Low Dat Pro Fac Gar Matter Collected 752 | 286 . . 10 . . . 128 62 17 . 159 . 90 Remotely . | . . . . . . . . . . . . . . Salvage Created 545 | 56 . . . 46 . . 128 . 14 . 22 . 279 Parts 40 | 7 . . . 1 . . 8 . 3 . 6 . 15 Haulers Intercepted . | . . . . . . . . . . . . . . Recyclers Shooed . | . . . . . . . . . . . . . . Parts Field Recycled . | . . . . . . . . . . . . . . Retrieved Matter . | . . . . . . . . . . . . . . Parts Self-Destructed 5 | . . . . . . . . . . . 5 . . Prevented . | . . . . . . . . . . . . . . Kills | -11 -10 -10 -9 -8 -7 -7 -6 -6 -6 -6 -5 -5 -5 ------- Run | Yrd Mat Min Mat Mat Fac DSF Fac Low Low Dat Pro Fac Gar Combat Hostiles Destroyed 10 | . . . . 1 . . 5 . 1 . 2 . 1 Melee 3 | . . . . . . . 1 . . . 2 . . Guns 4 | . . . . 1 . . 2 . . . . . 1 Cannons 3 | . . . . . . . 2 . 1 . . . . Classes Destroyed 6 | 1 . . . 1 . . 2 . 1 . 1 . . Tunneler 2 | 2 . . . . . . . . . . . . . Drone 2 | . . . . . . . . . . . 2 . . Swarmer 4 | . . . . . . . 4 . . . . . . Grunt 2 | . . . . 1 . . . . . . . . 1 Programmer 1 | . . . . . . . 1 . . . . . . Thief 1 | . . . . . . . . . 1 . . . . Best Kill Streak 3 | 2 . . . 1 . . 3 . 1 . 1 . 1 Combat Bots Only 3 | . . . . 1 . . 3 . 1 . 1 . 1 Max Kills in Single Turn 1 | 1 . . . 1 . . 1 . 1 . 1 . 1 Gunslinging . | . . . . . . . . . . . . . . Exploded . | . . . . . . . . . . . . . . Melee 1 | . . . . . . . 1 . . . 1 . . Uniques/NPCs Destroyed . | . . . . . . . . . . . . . . Combat | -11 -10 -10 -9 -8 -7 -7 -6 -6 -6 -6 -5 -5 -5 -------- Run | Yrd Mat Min Mat Mat Fac DSF Fac Low Low Dat Pro Fac Gar Hostile Shots Fired 353 | . . . . 81 . 15 65 15 35 . . . 142 Missed 134 | . . . . 21 . 8 16 6 18 . . . 65 Hits 219 | . . . . 60 . 7 49 9 17 . . . 77 Melee 18 | . . . . . . 5 . . 3 . . . 10 Projectile 201 | . . . . 60 . 2 49 9 14 . . . 67 AOE 2 | . . . . . . 2 . . . . . . . Critical Strikes 14 | . . . . . . 5 1 1 . . . . 7 Damage Taken 3724 | . . . . 586 . 166 773 165 339 . . . 1695 Core 1938 | . . . . 365 . 64 292 56 161 . . . 1000 Absorbed by Shields 67 | . . . . . . . . . . . . . 67 Core Remaining (%) 77 | 100 . 100 100 33 . 90 . . . . 40 . . Volleys Fired 41 | 2 3 . 3 6 . . 16 . 6 . 4 . 1 Largest 2 | 2 1 . 1 1 . . 2 . 1 . 1 . 1 Hottest 175 | 60 100 . 100 63 . . 175 . 90 . 90 . 39 Shots Fired 54 | 4 3 . 3 6 . . 26 . 6 . 4 . 2 Gun 24 | 4 . . . 6 . . 13 . . . . . 1 Cannon 23 | . . . . . . . 13 . 6 . 4 . . Launcher 1 | . . . . . . . . . . . . . 1 Special 6 | . 3 . 3 . . . . . . . . . . Kinetic 5 | 2 . . . . . . 3 . . . . . . Thermal 48 | 2 3 . 3 6 . . 23 . 6 . 4 . 1 Explosive 1 | . . . . . . . . . . . . . 1 Electromagnetic . | . . . . . . . . . . . . . . Robot Hit Streak 4 | 1 . . . 4 . . 3 . 1 . . . 4 Robot Miss Streak 4 | 1 . . . 2 . . 4 . 3 . 4 . . Penetration Max . | . . . . . . . . . . . . . . Secondary Targets . | . . . . . . . . . . . . . . Autonomous 3 | . . . . . . . . . . . . . 3 Shots Hit Robots 36 | 2 . . . 4 . . 14 . 2 . 2 . 12 Core Hits 20 | 2 . . . 2 . . 7 . 1 . 1 . 7 Critical Kills . | . . . . . . . . . . . . . . Critical Parts Destroyed . | . . . . . . . . . . . . . . Critical Strikes 3 | . . . . . . . 3 . . . . . . Burn 3 | . . . . . . . 3 . . . . . . Melee Attacks 34 | . . . . 3 . . 3 . . . 6 . 22 Impact . | . . . . . . . . . . . . . . Slashing 34 | . . . . 3 . . 3 . . . 6 . 22 Piercing . | . . . . . . . . . . . . . . Sneak Attacks . | . . . . . . . . . . . . . . Combat Hostiles . | . . . . . . . . . . . . . . Follow-up Attacks . | . . . . . . . . . . . . . . Damage Inflicted 1681 | 34 . . . 66 . . 361 . 63 . 100 . 1057 Guns 286 | 34 . . . 66 . . 106 . . . . . 80 Cannons 287 | . . . . . . . 224 . 63 . . . . Explosions 243 | . . . . . . . . . . . . . 243 Melee 865 | . . . . . . . 31 . . . 100 . 734 Ramming . | . . . . . . . . . . . . . . Kinetic 74 | 12 . . . . . . 62 . . . . . . Thermal 499 | 22 . . . 66 . . 268 . 63 . . . 80 Explosive 243 | . . . . . . . . . . . . . 243 Electromagnetic . | . . . . . . . . . . . . . . Impact . | . . . . . . . . . . . . . . Slashing 865 | . . . . . . . 31 . . . 100 . 734 Piercing . | . . . . . . . . . . . . . . Highest Corruption 2 | . . . . . . . 1 1 1 1 1 . 2 Average Corruption 1 | . . . . . . . 1 1 1 1 1 . 1 Corruption Purged . | . . . . . . . . . . . . . . Corruption Blocked 3 | . . . . . . . . . . . . . 3 Effects 5 | . . . . . . . . 1 . . 4 . . Message Errors 1 | . . . . . . . . . . . 1 . . Matter Fused 1 | . . . . . . . . . . . 1 . . Heat Flow Errors 1 | . . . . . . . . . . . 1 . . Energy Discharges 2 | . . . . . . . . 1 . . 1 . . Overload Shots . | . . . . . . . . . . . . . . Overflow Damage 67 | . . . . . . . 32 . . . 18 . 17 Projectiles 6 | . . . . . . . 6 . . . . . . Explosions 8 | . . . . . . . . . . . . . 8 Melee 53 | . . . . . . . 26 . . . 18 . 9 Knockbacks 2 | . . . . . . . 2 . . . . . . Impact . | . . . . . . . . . . . . . . Kinetic 2 | . . . . . . . 2 . . . . . . Secondary . | . . . . . . . . . . . . . . Self-Inflicted Damage 62 | . . . . . . . . . . . . . 62 Shots 1 | . . . . . . . . . . . . . 1 Rammed . | . . . . . . . . . . . . . . Targets Rammed . | . . . . . . . . . . . . . . Kicked . | . . . . . . . . . . . . . . Crushed . | . . . . . . . . . . . . . . Highest Temperature 525 | . . . . 51 . . 525 . 159 . 186 7 105 Average Temperature 113 | . . . . 28 . . 213 . 76 . 58 6 25 Received Heat Transfer 589 | . . . . 63 . . . 99 87 . . . 340 Siege Activations . | . . . . . . . . . . . . . . Martial Activations . | . . . . . . . . . . . . . . Shielding Activations . | . . . . . . . . . . . . . . Robots Disrupted . | . . . . . . . . . . . . . . Combat Hostiles . | . . . . . . . . . . . . . . Robots Corrupted . | . . . . . . . . . . . . . . Combat Hostiles . | . . . . . . . . . . . . . . Parts Fried . | . . . . . . . . . . . . . . Impact Corruptions . | . . . . . . . . . . . . . . Robots Melted . | . . . . . . . . . . . . . . Combat Hostiles . | . . . . . . . . . . . . . . Parts Melted 1 | . . . . . . . 1 . . . . . . Heat Transferred 1171 | 50 . . . 148 . . 798 . 100 . . . 75 Parts Sabotaged . | . . . . . . . . . . . . . . Parts Stolen 1 | . . . . . . . . . 1 . . . . Parts Stripped . | . . . . . . . . . . . . . . Power Chain Reactions . | . . . . . . . . . . . . . . Alert | -11 -10 -10 -9 -8 -7 -7 -6 -6 -6 -6 -5 -5 -5 ------- Run | Yrd Mat Min Mat Mat Fac DSF Fac Low Low Dat Pro Fac Gar Maximum Alert Level 3 | . . . . . . . . . . . . 3 3 Low Security (%) 76 | 100 100 100 100 100 100 100 100 . . . . . . Level 1 . | . . . . . . . . . . . . . . Level 2 11 | . . . . . . . . . . . . . 61 Level 3 12 | . . . . . . . . . . . . 100 38 Level 4 . | . . . . . . . . . . . . . . Level 5 . | . . . . . . . . . . . . . . High Security . | . . . . . . . . . . . . . . Max Security . | . . . . . . . . . . . . . . Peak Influence 963 | 10 20 . 5 71 23 33 63 . . . . 900 963 Initial 900 | . . . . . 23 3 16 . . . . 900 609 Average 179 | 1 3 . . 31 6 11 17 . . . . 884 696 Influence Increases 2075 | 10 28 . 11 121 5 30 146 195 135 . 10 900 484 Destroy 0b10 Robot/C 140 | . . . . 20 . . 100 . . . . . 20 Destroy 0b10 Robot/NC 30 | 10 . . . . . . . . . . 10 . 10 Destroy Leader 20 | . . . . . . . 20 . . . . . . Successful Hack 55 | . 26 . 8 11 5 . 5 . . . . . . Anti-Garrison Action 50 | . . . . . . . . . . . . . 50 Destroy Structure 85 | . 2 . 3 . . . 6 . . . . . 74 Advance Influence 900 | . . . . . . . . . . . . 900 . Partial Spotted 75 | . . . . 45 . . 15 . . . . . 15 Lose Combat Pursuer 720 | . . . . 45 . 30 . 195 135 . . . 315 Influence Decreases 1112 | 10 28 . 11 70 51 2 159 108 131 111 10 30 391 Entered New Map 448 | . . . . . 28 2 17 8 21 111 . . 261 Time Decay 454 | 10 28 . 11 60 23 . 122 90 70 . 10 30 . Lost Part 210 | . . . . 10 . . 20 10 40 . . . 130 Squads Dispatched 3 | . 1 . . . . 1 1 . . . . . . Investigation 1 | . 1 . . . . . . . . . . . . Extermination . | . . . . . . . . . . . . . . Reinforcement 2 | . . . . . . 1 1 . . . . . . Assault . | . . . . . . . . . . . . . . Garrison . | . . . . . . . . . . . . . . Intercept . | . . . . . . . . . . . . . . Searches Triggered . | . . . . . . . . . . . . . . Construction Impeded . | . . . . . . . . . . . . . . Haulers Reinforced . | . . . . . . . . . . . . . . Active Scanning Responses . | . . . . . . . . . . . . . . Cargo Convoy Interrupts . | . . . . . . . . . . . . . . Stealth | -11 -10 -10 -9 -8 -7 -7 -6 -6 -6 -6 -5 -5 -5 --------- Run | Yrd Mat Min Mat Mat Fac DSF Fac Low Low Dat Pro Fac Gar Distress Signals 1 | . . . 1 . . . . . . . . . . Communications Jammed . | . . . . . . . . . . . . . . Distress Signals . | . . . . . . . . . . . . . . Times Spotted 97 | . 5 . 2 12 . 4 7 16 12 . 6 . 33 Peak Tracking Total 22 | . 4 . 2 8 . 4 4 7 7 . 2 . 22 Tactical Retreats 14 | . . . . 1 . 2 . 5 3 . . . 3 Traps | -11 -10 -10 -9 -8 -7 -7 -6 -6 -6 -6 -5 -5 -5 ------- Run | Yrd Mat Min Mat Mat Fac DSF Fac Low Low Dat Pro Fac Gar Traps Triggered 3 | . . . . . . . 1 . . . . . 2 Indirectly . | . . . . . . . . . . . . . . Trap Hack Attempts . | . . . . . . . . . . . . . . Triggered . | . . . . . . . . . . . . . . Disarmed . | . . . . . . . . . . . . . . Reprogrammed . | . . . . . . . . . . . . . . Reused . | . . . . . . . . . . . . . . Traps Extracted . | . . . . . . . . . . . . . . Installed 1 | . . . . . . . 1 . . . . . . Triggered . | . . . . . . . . . . . . . . Most Traps Carried 1 | . . . . . . . 1 . . . . . . Machines | -11 -10 -10 -9 -8 -7 -7 -6 -6 -6 -6 -5 -5 -5 ---------- Run | Yrd Mat Min Mat Mat Fac DSF Fac Low Low Dat Pro Fac Gar Machines Disabled 1 | . . . . . . . . . . . . . 1 Max in Single Turn 1 | . . . . . . . . . . . . . 1 Garrison Relay 1 | . . . . . . . . . . . . . 1 Machines Repaired . | . . . . . . . . . . . . . . Machines Dismantled . | . . . . . . . . . . . . . . Machines Sabotaged . | . . . . . . . . . . . . . . Overloaded Fab Kills . | . . . . . . . . . . . . . . Hacking | -11 -10 -10 -9 -8 -7 -7 -6 -6 -6 -6 -5 -5 -5 --------- Run | Yrd Mat Min Mat Mat Fac DSF Fac Low Low Dat Pro Fac Gar Machines Accessed 22 | . 6 . 3 2 1 . 4 . . 4 . 1 1 Terminals 13 | . 5 . 2 2 1 . 2 . . . . . 1 Fabricators 1 | . . . . . . . 1 . . . . . . Repair Stations . | . . . . . . . . . . . . . . Recycling Units 3 | . 1 . 1 . . . 1 . . . . . . Scanalyzers . | . . . . . . . . . . . . . . Garrison Access 1 | . . . . . . . . . . . . 1 . Total Hacks 79 | . 21 . 10 4 1 . 7 . . 32 . 2 2 Successful 58 | . 13 . 4 2 1 . 4 . . 32 . 1 1 Failed 21 | . 8 . 6 2 . . 3 . . . . 1 1 Catastrophic 4 | . 2 . . 1 . . . . . . . . 1 Database Lockouts . | . . . . . . . . . . . . . . Manual 35 | . 18 . 10 4 . . 3 . . . . . . Terminals 39 | . 19 . 9 4 1 . 4 . . . . . 2 Fabricators 2 | . . . . . . . 2 . . . . . . Repair Stations . | . . . . . . . . . . . . . . Recycling Units 4 | . 2 . 1 . . . 1 . . . . . . Scanalyzers . | . . . . . . . . . . . . . . Garrison Access 2 | . . . . . . . . . . . . 2 . Terminal Hacks 44 | . 7 . 1 1 1 . 1 . . 32 . . 1 Record 11 | . . . . . . . . . . 11 . . . Part Schematic 13 | . 1 . . . . . . . . 12 . . . Robot Schematic 6 | . . . . . . . . . . 6 . . . Prototype ID Bank 3 | . . . . . . . . . . 3 . . . Open DSF 2 | . . . . . 1 . 1 . . . . . . Branch Access Points 1 | . 1 . . . . . . . . . . . . Emergency Access Points 1 | . . . . . . . . . . . . . 1 Terminal Index 2 | . 1 . 1 . . . . . . . . . . Dispatch Records 1 | . 1 . . . . . . . . . . . . Zone Layout 4 | . 3 . . 1 . . . . . . . . . Fabricator Hacks 1 | . . . . . . . 1 . . . . . . Network Status 1 | . . . . . . . 1 . . . . . . Repair Station Hacks . | . . . . . . . . . . . . . . Recycling Unit Hacks 2 | . 1 . . . . . 1 . . . . . . Report Inventory 2 | . 1 . . . . . 1 . . . . . . Scanalyzer . | . . . . . . . . . . . . . . Garrison Access Hacks 1 | . . . . . . . . . . . . 1 . Unlock Access 1 | . . . . . . . . . . . . 1 . Unauthorized Hacks 10 | . 5 . 3 1 . . 1 . . . . . . Terminals 8 | . 4 . 2 1 . . 1 . . . . . . Botnet 8 | . 4 . 2 1 . . 1 . . . . . . Fabricators . | . . . . . . . . . . . . . . Repair Stations . | . . . . . . . . . . . . . . Recycling Units 2 | . 1 . 1 . . . . . . . . . . Recyclers 2 | . 1 . 1 . . . . . . . . . . Scanalyzers . | . . . . . . . . . . . . . . Garrison Access . | . . . . . . . . . . . . . . Data Cores Recovered . | . . . . . . . . . . . . . . Used . | . . . . . . . . . . . . . . Hacking Detections 11 | . 4 . 3 2 . . 2 . . . . . . Full Trace Events 1 | . 1 . . . . . . . . . . . . Feedback Events . | . . . . . . . . . . . . . . Feedback Blocked . | . . . . . . . . . . . . . . Robot Schematics Acquired 6 | . . . . . . . . . . 6 . . . Robots Built . | . . . . . . . . . . . . . . Authchips . | . . . . . . . . . . . . . . Time . | . . . . . . . . . . . . . . Total Robot Build Rating . | . . . . . . . . . . . . . . Part Schematics Acquired 13 | . 1 . . . . . . . . 12 . . . Parts Built . | . . . . . . . . . . . . . . Authchips . | . . . . . . . . . . . . . . Time . | . . . . . . . . . . . . . . Total Part Build Rating . | . . . . . . . . . . . . . . Parts Repaired . | . . . . . . . . . . . . . . Time . | . . . . . . . . . . . . . . Parts Recycled . | . . . . . . . . . . . . . . Recycled Matter . | . . . . . . . . . . . . . . Retrieved Matter . | . . . . . . . . . . . . . . Retrieved Components . | . . . . . . . . . . . . . . Parts Scanalyzed . | . . . . . . . . . . . . . . Part Schematics Acquired . | . . . . . . . . . . . . . . Parts Damaged . | . . . . . . . . . . . . . . Bothacking | -11 -10 -10 -9 -8 -7 -7 -6 -6 -6 -6 -5 -5 -5 ------------ Run | Yrd Mat Min Mat Mat Fac DSF Fac Low Low Dat Pro Fac Gar Used RIF Installer . | . . . . . . . . . . . . . . Robots Hacked . | . . . . . . . . . . . . . . Non-combat . | . . . . . . . . . . . . . . Combat . | . . . . . . . . . . . . . . Robot Hacks Applied . | . . . . . . . . . . . . . . Relay Couplers Released 5 | . . . . . . . . . . . . . 5 Machine Destruction 5 | . . . . . . . . . . . . . 5 Fabnet Peak Effective % . | . . . . . . . . . . . . . . Robots Rewired . | . . . . . . . . . . . . . . Allies Hacked . | . . . . . . . . . . . . . . Hacks Repelled . | . . . . . . . . . . . . . . Allies | -11 -10 -10 -9 -8 -7 -7 -6 -6 -6 -6 -5 -5 -5 -------- Run | Yrd Mat Min Mat Mat Fac DSF Fac Low Low Dat Pro Fac Gar Total Allies 3 | . . 3 . . . . . . . . . . . Largest Group 3 | . . 3 3 . . . . . . . . . . Highest-Rated Group 40 | . . 40 40 . . . . . . . . . . Highest-Rated Ally 16 | . . 16 16 . . . . . . . . . . Total Orders . | . . . . . . . . . . . . . . Ally Attacks 18 | . . . 18 . . . . . . . . . . Total Damage 167 | . . . 167 . . . . . . . . . . Kills . | . . . . . . . . . . . . . . Allies Corrupted . | . . . . . . . . . . . . . . Allies Melted . | . . . . . . . . . . . . . . Intel | -11 -10 -10 -9 -8 -7 -7 -6 -6 -6 -6 -5 -5 -5 ------- Run | Yrd Mat Min Mat Mat Fac DSF Fac Low Low Dat Pro Fac Gar Active Infowar (turns) 1450 | 7 122 94 226 . . . 220 113 67 . 244 79 278 Optics 493 | . . . . . . . . . . . 136 79 278 Sensors 58 | . . . . . . . . . . . . 32 26 Terrain 400 | . . . . . . . 220 113 67 . . . . Structural 209 | . . . 209 . . . . . . . . . . Seismic 449 | 7 122 94 226 . . . . . . . . . . Decoding 601 | . . . . . . . . . . . 244 79 278 Robot Analysis Total . | . . . . . . . . . . . . . . Derelict Logs Recovered 2 | . . 1 . . . . . . 1 . . . . Drone Launches . | . . . . . . . . . . . . . . Drone Recoveries . | . . . . . . . . . . . . . . Decoded 0b10 Intel 9 | . . . . . . . . . . . . 2 7 Traps 8 | . . . . . . . . . . . . 1 7 Emergency Access 1 | . . . . . . . . . . . . 1 . Exploration | -11 -10 -10 -9 -8 -7 -7 -6 -6 -6 -6 -5 -5 -5 ------------- Run | Yrd Mat Min Mat Mat Fac DSF Fac Low Low Dat Pro Fac Gar Turns Passed 2232 | 66 122 94 229 159 111 54 347 191 140 63 299 79 278 Spaces Moved 3325 | 69 148 159 298 243 152 102 410 374 259 126 492 93 400 Core 2482 | 66 148 159 298 107 . 18 407 374 109 126 492 41 137 Treads 3 | 3 . . . . . . . . . . . . . Legs 66 | . . . . 15 48 . 3 . . . . . . Wheels . | . . . . . . . . . . . . . . Hover 315 | . . . . . . . . . . . . 52 263 Flight 459 | . . . . 121 104 84 . . 150 . . . . Fastest Speed 26 | 50 50 50 50 26 42 35 50 50 35 50 50 28 28 Average Speed 49 | 55 50 50 50 46 69 42 53 50 45 50 50 40 41 Slowest Speed 200 | 160 50 50 50 130 130 50 200 50 100 50 50 50 200 Overloaded Moves 10 | . . . . 10 . . . . . . . . . Propulsion Burnouts . | . . . . . . . . . . . . . . Robots Hopped 8 | . . . . 3 2 3 . . . . . . . Potential Cave-ins . | . . . . . . . . . . . . . . Cave-ins Triggered . | . . . . . . . . . . . . . . Exploration Rate (%) 38 | 4 37 36 33 31 4 74 13 58 54 74 66 2 57 Regions Visited 13 Branch Regions 5 Pre-discovered Areas 2 | . . 1 . . . . . . . 1 . . . Known Exits Taken 9 | . 1 . . 1 1 . 1 1 1 1 1 1 . Unknown Exits Taken 3 | 1 . 1 1 . . . . . . . . . . Scrap Searched 4 | . . . . . . . . 1 . . 3 . . Spaces Dug 11 | . 3 . 3 . . . 1 . . . 1 . 3 Terrain Destroyed 39 | . 3 . 3 . . . 5 . 4 . 5 . 19 Melee 5 | . . . . . . . 1 . . . 1 . 3 Projectile 18 | . 3 . 3 . . . 4 . 4 . 4 . . AOE 16 | . . . . . . . . . . . . . 16 Terrain Rammed . | . . . . . . . . . . . . . . Walls Destroyed . | . . . . . . . . . . . . . . Machines Disabled . | . . . . . . . . . . . . . . Actions | -11 -10 -10 -9 -8 -7 -7 -6 -6 -6 -6 -5 -5 -5 --------- Run | Yrd Mat Min Mat Mat Fac DSF Fac Low Low Dat Pro Fac Gar Total 3775 | 88 186 172 372 270 156 110 509 376 273 125 531 131 476 Wait 242 | 6 36 13 58 11 . 6 40 . . . 16 30 26 Move 3294 | 68 147 158 297 236 147 95 409 373 258 125 491 92 398 Hop 8 | . . . . 3 2 3 . . . . . . . Pick Up 31 | 3 . 1 3 5 4 2 9 . . . 2 1 1 Fast Attach 41 | 6 . . 1 5 . 1 8 2 4 . 5 6 3 Attach 18 | . . . . 1 1 . 9 . 2 . 1 1 3 Detach 14 | 1 . . 1 . . . 7 . 2 . 3 . . Swap 3 | 2 . . . . . . . . . . . . 1 Drop 31 | . . . 9 . 2 3 7 1 1 . 3 1 4 Fire 41 | 2 3 . 3 6 . . 16 . 6 . 4 . 1 Melee 34 | . . . . 3 . . 3 . . . 6 . 22 Ram . | . . . . . . . . . . . . . . Kick . | . . . . . . . . . . . . . . Crush . | . . . . . . . . . . . . . . Escape Stasis 17 | . . . . . . . . . . . . . 17 Rewire . | . . . . . . . . . . . . . . Trap 1 | . . . . . . . 1 . . . . . . Miscellaneous . | . . . . . . . . . . . . . . Route ------- -11/Scrapyard -10/Materials (discovered 3 exits: *Mat / *Min x2) -10/Mines -9/Materials -8/Materials -7/Factory -7/DSF -6/Factory -6/Lower Caves -6/Lower Caves (discovered 2 exits: Fac / *Dat) -6/Data Miner -5/Proximity Caves -5/Factory -5/Garrison (discovered 2 exits: *Fac x2) History --------- Turn | Location | Event 8 | -11/Scrapyard | Discovered new exit (range 15) 67 | -11/Scrapyard | Entered Materials 77 | -10/Materials | Identified exit to Mines 173 | -10/Materials | Discovered new exit (range 16) 189 | -10/Materials | Entered Mines 196 | -10/Mines | Learned location of Recycling (-9) 256 | -10/Mines | A weapon hastily lodged in a ceiling crevice suddenly fell to the ground 262 | -10/Mines | Discovered new exit (range 14) 270 | -10/Mines | Assisted by bots powering up and referring to "LRC-V3" 283 | -10/Mines | Entered Materials 283 | -9/Materials | Accompanied by 3 allies 283 | -9/Materials | Evolved 2 slots: Propulsion x1, Utility x1 322 | -9/Materials | Build established: Mutant 357 | -9/Materials | Lost 3 allies 502 | -9/Materials | Discovered new exit (range 16) 509 | -9/Materials | Released all parts (5) 512 | -9/Materials | Entered another Materials area 512 | -8/Materials | Evolved 2 slots: Utility x2 575 | -8/Materials | Core integrity fell below 50% 641 | -8/Materials | Discovered new exit (range 16) 670 | -8/Materials | Identified exit to Factory 671 | -8/Materials | Entered Factory 671 | -7/Factory | Evolved 2 slots: Propulsion x1, Weapon x1 782 | -7/Factory | Identified exit to DSF 782 | -7/Factory | Entered DSF 809 | -7/DSF | Additional patrols routed to DSF 827 | -7/DSF | Discovered new exit (range 16) 836 | -7/DSF | Identified exit to Factory 836 | -7/DSF | Entered Factory 836 | -6/Factory | Evolved 2 slots: Utility x2 1031 | -6/Factory | Lost 3 parts (1n1u1w) 1178 | -6/Factory | Discovered new exit (range 9) 1182 | -6/Factory | Identified exit to Lower Caves 1183 | -6/Factory | Entered Lower Caves 1364 | -6/Lower Caves | Attracted the attention of an 0b10 checkpoint 1372 | -6/Lower Caves | Discovered new exit (range 5) 1373 | -6/Lower Caves | Identified exit to Lower Caves 1374 | -6/Lower Caves | Entered another Lower Caves area 1461 | -6/Lower Caves | Spotted B-75 Beast 1469 | -6/Lower Caves | Core integrity fell below 50% 1498 | -6/Lower Caves | Lost 4 parts (3n1u) 1501 | -6/Lower Caves | Discovered new exit (range 12) 1506 | -6/Lower Caves | Identified exit to Data Miner 1510 | -6/Lower Caves | Identified exit to Factory 1514 | -6/Lower Caves | Entered Data Miner 1514 | -6/Data Miner | Discovered new exit (range 6) 1524 | -6/Data Miner | Met Data Miner 1534 | -6/Data Miner | Learned location of Section 7 (-2) 1534 | -6/Data Miner | Acquired the access code to Warlord's prototype stash 1544 | -6/Data Miner | Received God Mode back door access code from Data Miner 1577 | -6/Data Miner | Identified exit to Proximity Caves 1577 | -6/Data Miner | Entered Proximity Caves 1580 | -5/Proximity Caves | Spotter reported a threat 1580 | -5/Proximity Caves | Spotter reported a threat 1646 | -5/Proximity Caves | Spotter reported a threat 1730 | -5/Proximity Caves | Spotter reported a threat 1743 | -5/Proximity Caves | Spotter reported a threat 1795 | -5/Proximity Caves | Spotter reported a threat 1835 | -5/Proximity Caves | Spotted B-75 Beast 1871 | -5/Proximity Caves | Discovered exit to Factory (range 5) 1876 | -5/Proximity Caves | Entered Factory 1876 | -5/Factory | Evolved 2 slots: Utility x2 1882 | -5/Factory | Identified exit to Garrison 1955 | -5/Factory | Entered Garrison 2101 | -5/Garrison | Spotted B-75 Beast 2105 | -5/Garrison | Triggered checkpoint 2125 | -5/Garrison | Garrison Relay disabled 2131 | -5/Garrison | Triggered checkpoint 2139 | -5/Garrison | Discovered new exit (range 19) 2153 | -5/Garrison | Triggered checkpoint 2158 | -5/Garrison | Identified exit to Factory 2159 | -5/Garrison | Attempted to access garrison exit controls, blocked by remote lockdown 2164 | -5/Garrison | Core integrity fell below 50% 2187 | -5/Garrison | Triggered checkpoint 2197 | -5/Garrison | Triggered checkpoint 2211 | -5/Garrison | Discovered exit to Factory (range 11) 2216 | -5/Garrison | Attempted to access garrison exit controls, blocked by remote lockdown 2222 | -5/Garrison | Core integrity fell below 20% 2233 | -5/Garrison | Destroyed by C-35 Carver with Carbide Saw Last Messages --------------- 02163_ Slug penetrates Reinforced Barrier. 02163_ Corruption Screen destroyed. 02166_ P-70 Sage resets G-50 Soldier, system corruption cleaned. 02179_ Ripper destroyed. 02186_ G-50 Soldier destroyed. 02187_ Beams of light sweep through the air. An alarm sounds. 02189_ >> DECODED: Stasis Trap location. 02191_ Critical hit (Burn: +37). 02191_ PD Laser destroyed. 02193_ Gravity Neutralizer destroyed. 02197_ Beams of light sweep through the air. An alarm sounds. 02211_ EXIT=FOUND: FACTORY 02213_ System Shield severed. 02215_ >> DECODED: Alarm Trap location. 02216_ Attempting to access garrison exit controls... 02216_ Remote lockdown engaged. 02216_ Hvy. Missile Launcher severed. 02217_ Acquired Hvy. Missile Launcher. 02219_ Destroyed Carbide Saw. 02219_ Hvy. Missile Launcher destroyed. Map ----- +----------------------------------------------------+ | #??????????????????# #???????????# ## #???? | | #??????????????????# ######?###### ## #???? | | #################### ##"#T### % ##### | | " + | | + ^^ " | | ############################### ## ## ##### | | ????????????????????????????### ## ## ###?? | | ????????????????????????????# #?? | | ????????????????????????????# #?? | | ????????????????????????????# #?? | | ????????????????????????????# #?? | | ????????????????????????????### ## ## ###?? | | ??????????????????????????????# ## ## #???? | | ??????????????????????????????# #???? | | ??????????????????????????????# *= +???? | | ??????????????????????????????# [%= #???? | | ??????????????????????????????## ## ##^^##???? | | ???????????????????????????????# ## ##^^#????? | | ???????????????????????????????# ######## #????? | | ???????????????????????????????# #??????# #????? | | ???????????????????????????????# #??????# #????? | | ???????????????????????????????# #??????# #????? | | ???????????????????????????????# #??????# #????? | | ??????????######################Y #??????# #????+ | | ??????????# c p #??????# ????? | | ??????????# p c c@ #??????+ ????? | | ??????????# ####+##############++#??????####????? | | ??????????# #???????????????????????????????????? | | ??????????# #???????????????????????????????????? | | ??????????# #???????????????????????????????????? | | ????##+#### #???????????????????????????????????? | | ????# #???????????????????????????????????? | | ???++! #?##????????????????????????????????? | | ???++! ^ # ## #????????????????????????????????? | | ????#! ## #????????????????????????????????? | | ????#! ?# # #??????????????????????????????? | | ????#! ??# < #??????????????????????????????? | | ????#! ??# ###??????????????????????????????? | | ????##+??# #????????????????????????????????? | | ?????????# # ##????????????????????????????????? | | ?????????## ###?????????????????????????????????? | | ??????????# #???????????????????????????????????? | | ??????????# #???????????????????????????????????? | | ??????????# #???????????????????????????????????? | | ??????????# #???????????????????????????????????? | | ??????????# #???????????????????????????????????? | | ?????????? +???????????????????????????????????? | | ?????????? +???????????????????????????????????? | | ??????????####+????????????+?????????????????????? | | ?????????????????????????????????????????????????? | +----------------------------------------------------+ Best States ------------- Heat Dissipation 66 Energy Generation 15 Energy Capacity 900 Matter Stores 300 Matter Capacity 300 Sight Range 20 Robot Scan Range 15 Terrain Scan Range 14 Terrain Scan Density 10 Base Temperature (-) 150 Corruption Block 8 Armor Coverage 150 Phase Shifting 5 Evasion (%) 63 Melee Accuracy 8 Target Analysis 5 Recoil Reduction 1 Defensive Hacking 22 Item Schematics ----------------- ECM Suite | -10/Materials | Hacked Combat Drone Bay | -6/Data Miner | Free Lgt. Regenerative Plating | -6/Data Miner | Free Enh. Armored Leg | -6/Data Miner | Free Hvy. Proton Cannon | -6/Data Miner | Free Imp. Thermal Defense Suite | -6/Data Miner | Free Shield Leg | -6/Data Miner | Free Imp. Force Field | -6/Data Miner | Free Matter Neutralizer | -6/Data Miner | Free Lrn. Terrain Scanner | -6/Data Miner | Free Imp. System Guard | -6/Data Miner | Free Adv. Force Field | -6/Data Miner | Free Q-thruster | -6/Data Miner | Free Robot Schematics ------------------ S-27 Virus | -6/Data Miner | Free P-70 Sage | -6/Data Miner | Free A-15 Conveyor | -6/Data Miner | Free Y-64 Sentinel | -6/Data Miner | Free M-30 Cleanser | -6/Data Miner | Free X-77 Beamer | -6/Data Miner | Free Fabricated ------------ Nothing Repaired ---------- Nothing Alien Tech Used ----------------- None Achievements -------------- None Challenges ------------ None Game ------ Seed TargetingVoltaicDriver Manual? 0 Play Time 00:50:21 Cumulative 93.2 hours Start 2025.05.28 @ 22:11:23 End 2025.05.29 @ 00:09:36 Sessions 3 Manual Loads 0 Difficulty Rogue Special Mode None Game No. 45 Rogue 45 Adventurer 0 Explorer 0 Win Type - Total 5 Types 5/0/0/0/0/0/0/0/0/0 Lore% 58 Gallery% 50 Achievement% 41 Wizard Run 0 Options --------- Layout 0 ASCII 0 Keyboard 1 Movement Numpad Keybinds 0 Fullscreen 1 Font 18/Cog Map View 76x50 Zoom Use 0% Tactical HUD 1 Map Filters NONE Filters NONE Steam 1 RUN: fb373715-6fc3-4998-a753-dcb41d975fda